Workbook

Sheet Menu
A1: This is a farm business decision calculator that has 4 worksheets. There are fields that can be completed by the user. It is up to 24 columns wide and 55 rows.
A2: Welcome to the Custom Farmwork Rate Calculator Menu Page
A17: The Custom Farmwork Rate Calculator is an excel worksheet that allows you to calculate what to charge for custom farmwork.
A18: Also included are charts of machinery costs that are required for the calculations and a factsheet containing the 2018 Survey of
A19: Custom Farmwork Rates charged in Ontario and a guide to writing custom farmwork agreements.
A21: The Short-term Equipment Rental Rate Calculator is an excel worksheet that allows you to calculate what to charge for short-term
A22: equipment rentals.
A24: Developed by John Molenhuis
A25: Business Analysis and Cost of Production Program Specialist
A26: OMAFRA, Brighton
A27: email: john.molenhuis@ontario.ca
A28: 2020-04-15T09:50:08.880
A31: End of worksheet

Sheet Calculator
B2: Custom Farmwork Rate Calculator
B3: POWER UNIT (TRACTOR OR SELF-PROPELLED MACHINE)
B4: PTO Horsepower | C4: 375 | D4: Self Propelled combines
B5: Life (years) | C5: 5 | D5: Purchase Price | E5: 478000 | Z5: =D4 -> Self Propelled combines | AA5: 2WD tractors | AD5: 2WD tractors
B6: Interest rate | C6: 0.05 | D6: Hours per year | E6: 250 | AA6: FWA tractors | AD6: FWA tractors
B7: Acres/year | C7: 2575 | D7: Fuel Cost per litre | E7: 1 | AA7: 4WD tractors | AD7: 4WD tractors
B8: Acres/hour (see table 5) | C8: 10.3 | D8: Fuel Used -litres/hr (see Table 5) | E8: =C4*0.244 -> 91.5 | AA8: Self Propelled combines | AD8: Self Propelled combines
AA9: Self propelled high clearance sprayer | AD9: Self propelled high clearance sprayer
B10: Annual depreciation rate (%) from Table 3 | C10: =IF(D4<>"",VLOOKUP(D4,DeprRep,4,FALSE),0) -> 5.6 | D10: Annual repair rate (%) from Table 3 | E10: =IF(D4<>"",VLOOKUP(D4,DeprRep,5,FALSE),0) -> 2.5 | AA10: Self propelled forage harvesters | AD10: Self propelled forage harvesters
B11: Trade in Value** | C11: =IF(C10=0,0,E5-(E5*C10/100*C5)) -> 344160 | AA11: Depreciation
B12: Annual Fixed Cost | AA12: Trade in value
B13: Capital recovery* | AA13: Repairs | AB13: =VLOOKUP(D4,DeprRep,4) -> 3.3
B14: purchase price – trade-in value | D14: =E5-C11 -> 133840
B15: capital recovery factor | C15: x | D15: =(C6*(1+C6)^C5)/((1+C6)^C5-1) -> 0.2309747981 | AB15: =VLOOKUP(D4,Tables!B5:F24,5) -> 1
D16: =D14*D15 -> 30913.66698
B17: trade-in value x annual interest rate** | C17: + | D17: =C11*C6 -> 17208
B18: Total Capital recovery | E18: =D16+D17 -> 48121.66698
AA19: Headers, grain
B20: Insurance & housing = | D20: purchase price x 1.0 % | E20: =E5*0.01 -> 4780 | AA20: Headers, corn
B21: Total Fixed Cost | E21: =SUM(E18:E20) -> 52901.66698 | F21: (A) | AA21: Grain carts
AA22: Plows, discs
B23: Annual Operating Cost | AA23: Vertical tillage
B24: Fuel & lubricants( Table 5) = | D24: (litres/hour x hr/yr x fuel cost/L x 1.15) | E24: =E8*E6*E7*1.15 -> 26306.25 | AA24: Cultivators, hoes
B25: Repairs = | D25: Annual repair rate x purchase price | E25: =E5*E10/100 -> 11950 | AA25: Harrows
B26: Total Operating Costs | E26: =SUM(E24:E25) -> 38256.25 | F26: (B) | AA26: Drills
B27: Total Power Unit Costs | E27: =SUM(E26,E21) -> 91157.91698 | AA27: Row crop planters
B28: + IMPLEMENT 1 (TILLAGE IMPLEMENT, PTO MACHINE, OTHER) | D28: Headers, corn | AA28: Mower/conditioner
B29: Life (years) | C29: 5 | D29: Purchase Price | E29: 122000 | AA29: Balers, round
B30: Interest rate | C30: 0.05 | AA30: Balers, large square
AA31: Balers, small square
B32: Annual depreciation rate (%) from Table 3 | C32: =IF(D28<>"",VLOOKUP(D28,DeprRep,4,FALSE),0) -> 4.4 | D32: Annual repair rate (%) from Table 3 | E32: =IF(D28<>"",VLOOKUP(D28,DeprRep,5,FALSE),0) -> 2.8 | AA32: Manure spreaders
B33: Trade in Value** | C33: =IF(C32="","",E29-(E29*C32/100*C29)) -> 95160 | AA33: Mower/conditioner
B34: + IMPLEMENT 2 (TILLAGE IMPLEMENT, PTO MACHINE, OTHER) | D34: Headers, grain | AA34: Balers, round
B35: Life (years) | C35: =C29 -> 5 | D35: Purchase Price | E35: 60000 | AA35: Balers, large square
B36: Interest rate | C36: =C30 -> 0.05 | AA36: Balers, small square
AA37: Manure spreaders
B38: Annual depreciation rate (%) from Table 3 | C38: =IF(D34<>"",VLOOKUP(D34,DeprRep,4,FALSE),0) -> 4.4 | D38: Annual repair rate (%) from Table 3 | E38: =IF(D34<>"",VLOOKUP(D34,DeprRep,5,FALSE),0) -> 2.5
B39: Trade in Value** | C39: =IF(C38="","",E35-(E35*C38/100*C35)) -> 46800
B40: Annual Fixed Cost
B41: Capital recovery*
B42: purchase price – trade-in value | D42: =(E29-C33)+(E35-C39) -> 40040
B43: capital recovery factor | C43: x | D43: =(C30*(1+C30)^C29)/((1+C30)^C29-1) -> 0.2309747981
D44: =D42*D43 -> 9248.230917
B45: trade-in value x annual interest rate** | C45: + | D45: =(C33*C30)+(C39*C36) -> 7098
B46: Capital recovery | E46: =D44+D45 -> 16346.23092
B48: Insurance & housing = | D48: purchase price x 1% | E48: =(E35+E29)*0.01 -> 1820
B49: Total Fixed Cost | E49: =SUM(E42:E48) -> 18166.23092 | F49: (C)
B51: Annual Operating Cost
B52: Repairs = | D52: Annual repair rate x purchase price | E52: =(E29*E32/100)+(E35*E38/100) -> 4916
B53: Total Operating costs | E53: =SUM(E51:E52) -> 4916 | F53: (D)
B54: Total Implement Costs | E54: =SUM(E53,E49) -> 23082.23092
B55: = Annual Machinery Costs (A+B+C+D) | E55: =SUM(E54,E27) -> 114240.1479 | F55: (E)
B56: Return to Management | C56: 0.15 | D56: Operator Labour (self or hired) per Hour | E56: 22
D57: Labour Allowance for Machine travel, downtime | E57: 0.15
B58: + Profit Margin (return to management, admin. costs) (suggest 15% of machinery costs ( E x 0.15 ) | E58: =E55*C56 -> 17136.02218 | F58: (F)
B59: + Operator Labour (self or hired) --- (suggest 15% over machine hr for travel, downtime) # of machinery hr x 1.15 x wage/h | E59: =E6*E56*(1+E57) -> 6325 | F59: (G)
B60: = Total Costs (E+F+G) | E60: =E55+E58+E59 -> 137701.1701 | F60: (H)
B61: = Custom Rate | D61: Per Acre | E61: =E60/C7 -> 53.47618256
D62: Per Hour | E62: =E60/E6 -> 550.8046803
B63: * The capital recovery method estimates the annual depreciation and interest costs. It combines depreciation and
B64: interest costs in one calculation. To calculate the capital recovery costs, the capital recovery factor is multiplied by total
B65: depreciation and adds the result of the trade-in value multiplied by the interest rate. Table 4 provides the capital recovery
B66: factors for selected combinations of years and interest rates.
B67: ** Trade-in value = purchase price – (purchase price x annual depreciation rate (from Table 3) x number of years owned).
B68: *** Interest: Interest calculation is the average annual interest cost of the investment (yours and/or the lender’s) that is tied
B69: up in the machine.
B72: Short Term Equipment Rental Rate Calculator
B73: + Machinery Costs (from Custom Rate Calculator above) | E73: =E55 -> 114240.1479 | F73: (E)
B74: – Total Fuel and Lubricant cost (if any) (see Custom Rate Calculator above) | E74: =E24 -> 26306.25 | F74: (J)
B75: Return to management percentage | E75: 0.15
B76: + Profit Margin (return to management, admin. costs) suggest 15 % of Machinery Costs ( E – J) x 0.15 | E76: =(E73-E74)*E75 -> 13190.08468 | F76: (K)
B77: = Total Costs (E–J+K) | E77: =E73-E74+E76 -> 101123.9826 | F77: (L)
B78: = Rental Rate | D78: Per Acre | E78: =E77/C7 -> 39.27144955
D79: Per Hour | E79: =E77/E6 -> 404.4959303
B80: Note: Rental Rates may have minimum daily or weekly rates
B83: End of worksheet

Sheet Tables
B1: Tables 4 and 5 scroll right
B3: Table 3, Annual hours of use, optimal life, depreciation and repair rates | H3: Table 4. Capital recovery factors | X3: TABLE 5. Performance, Horsepower and Fuel Requirements of Selected Farm Equipment
B4: Machine | C4: Annual Use (hours) | D4: Optimal Life (years) | E4: Annual Depreciation Rate (% of purchase price) | F4: Annual Repair Rate (% of purchase price) | I4: Interest rate | Y4: PTO HP(1,2) | Z4: Acres/hour(2) | AA4: Litres/acre | AB4: Litres/hour(3)
B5: 2WD tractors | C5: 300 | D5: 20 | E5: 3.3 | F5: 2.2 | H5: Year | I5: 0.02 | J5: 0.03 | K5: 0.04 | L5: 0.05 | M5: 0.06 | N5: 0.07 | O5: 0.08 | P5: 0.09 | Q5: 0.1 | R5: 0.11 | S5: 0.12 | T5: 0.13 | U5: 0.14 | V5: 0.15 | X5: 4–18-in. furrow plow | Y5: 75 | Z5: 2.8 | AA5: 6.5 | AB5: 18.3
B6: FWA tractors | C6: 450 | D6: 15 | E6: 4.4 | F6: 2.6 | H6: 1 | I6: 1.02 | J6: 1.03 | K6: 1.04 | L6: 1.05 | M6: 1.06 | N6: 1.07 | O6: 1.08 | P6: 1.09 | Q6: 1.1 | R6: 1.11 | S6: 1.12 | T6: 1.13 | U6: 1.14 | V6: 1.15 | X6: 6–18-in. furrow plow | Y6: 140 | Z6: 3 | AA6: 11.4 | AB6: 34.2
B7: 4WD tractors | C7: 450 | D7: 15 | E7: 4.4 | F7: 2.5 | H7: 2 | I7: 0.515 | J7: 0.523 | K7: 0.53 | L7: 0.538 | M7: 0.545 | N7: 0.553 | O7: 0.561 | P7: 0.568 | Q7: 0.576 | R7: 0.584 | S7: 0.592 | T7: 0.599 | U7: 0.607 | V7: 0.615 | X7: 8–18-in. furrow plow | Y7: 250 | Z7: 5.6 | AA7: 10.9 | AB7: 61.1
B8: Self Propelled combines | C8: 250 | D8: 12 | E8: 5.6 | F8: 2.5 | H8: 3 | I8: 0.347 | J8: 0.354 | K8: 0.36 | L8: 0.367 | M8: 0.374 | N8: 0.381 | O8: 0.388 | P8: 0.395 | Q8: 0.402 | R8: 0.409 | S8: 0.416 | T8: 0.424 | U8: 0.431 | V8: 0.438 | X8: 24-ft field cultivator | Y8: 140 | Z8: 9 | AA8: 3.8 | AB8: 34.2
B9: Headers, grain | C9: 250 | D9: 15 | E9: 4.4 | F9: 2.5 | H9: 4 | I9: 0.263 | J9: 0.269 | K9: 0.275 | L9: 0.282 | M9: 0.289 | N9: 0.295 | O9: 0.302 | P9: 0.309 | Q9: 0.315 | R9: 0.322 | S9: 0.329 | T9: 0.336 | U9: 0.343 | V9: 0.35 | X9: 31-ft field cultivator | Y9: 225 | Z9: 20.6 | AA9: 2.7 | AB9: 55
B10: Headers, corn | C10: 100 | D10: 15 | E10: 4.4 | F10: 2.8 | H10: 5 | I10: 0.212 | J10: 0.218 | K10: 0.225 | L10: 0.231 | M10: 0.237 | N10: 0.244 | O10: 0.25 | P10: 0.257 | Q10: 0.264 | R10: 0.271 | S10: 0.277 | T10: 0.284 | U10: 0.291 | V10: 0.298 | X10: 44-ft field cultivator | Y10: 270 | Z10: 29.1 | AA10: 2.3 | AB10: 66
B11: Grain carts | C11: 250 | D11: 20 | E11: 3.3 | F11: 2 | H11: 6 | I11: 0.179 | J11: 0.185 | K11: 0.191 | L11: 0.197 | M11: 0.203 | N11: 0.21 | O11: 0.216 | P11: 0.223 | Q11: 0.23 | R11: 0.236 | S11: 0.243 | T11: 0.25 | U11: 0.257 | V11: 0.264 | X11: 16-ft chisel plow | Y11: 155 | Z11: 9 | AA11: 4.2 | AB11: 37.9
B12: Plows, discs | C12: 100 | D12: 20 | E12: 3.3 | F12: 1.5 | H12: 7 | I12: 0.155 | J12: 0.161 | K12: 0.167 | L12: 0.173 | M12: 0.179 | N12: 0.186 | O12: 0.192 | P12: 0.199 | Q12: 0.205 | R12: 0.212 | S12: 0.219 | T12: 0.226 | U12: 0.233 | V12: 0.24 | X12: 21-ft chisel plow | Y12: 240 | Z12: 12.6 | AA12: 4.7 | AB12: 58.6
B13: Vertical tillage | C13: 100 | D13: 20 | E13: 3.3 | F13: 3.5 | H13: 8 | I13: 0.137 | J13: 0.142 | K13: 0.149 | L13: 0.155 | M13: 0.161 | N13: 0.167 | O13: 0.174 | P13: 0.181 | Q13: 0.187 | R13: 0.194 | S13: 0.201 | T13: 0.208 | U13: 0.216 | V13: 0.223 | X13: 24-ft tandem disk | Y13: 150 | Z13: 15.1 | AA13: 2.4 | AB13: 36.7
B14: Cultivators, hoes | C14: 200 | D14: 20 | E14: 3.3 | F14: 1.5 | H14: 9 | I14: 0.123 | J14: 0.128 | K14: 0.134 | L14: 0.141 | M14: 0.147 | N14: 0.153 | O14: 0.16 | P14: 0.167 | Q14: 0.174 | R14: 0.181 | S14: 0.188 | T14: 0.195 | U14: 0.202 | V14: 0.21 | X14: 30-ft tandem disk | Y14: 225 | Z14: 15.3 | AA14: 3.6 | AB14: 55
B15: Harrows | C15: 200 | D15: 25 | E15: 2.7 | F15: 0.5 | H15: 10 | I15: 0.111 | J15: 0.117 | K15: 0.123 | L15: 0.13 | M15: 0.136 | N15: 0.142 | O15: 0.149 | P15: 0.156 | Q15: 0.163 | R15: 0.17 | S15: 0.177 | T15: 0.184 | U15: 0.192 | V15: 0.199 | X15: 10-ft offset disk | Y15: 110 | Z15: 6 | AA15: 4.5 | AB15: 26.9
B16: Drills | C16: 200 | D16: 15 | E16: 4.4 | F16: 3 | H16: 11 | I16: 0.102 | J16: 0.108 | K16: 0.114 | L16: 0.12 | M16: 0.127 | N16: 0.133 | O16: 0.14 | P16: 0.147 | Q16: 0.154 | R16: 0.161 | S16: 0.168 | T16: 0.176 | U16: 0.183 | V16: 0.191 | X16: 16-ft offset disk | Y16: 155 | Z16: 9.6 | AA16: 3.9 | AB16: 37.9
B17: Row crop planters | C17: 100 | D17: 10 | E17: 6.7 | F17: 4 | H17: 12 | I17: 0.095 | J17: 0.1 | K17: 0.107 | L17: 0.113 | M17: 0.119 | N17: 0.126 | O17: 0.133 | P17: 0.14 | Q17: 0.147 | R17: 0.154 | S17: 0.161 | T17: 0.169 | U17: 0.177 | V17: 0.184 | X17: 21-ft vertical tillage | Y17: 190 | Z17: 19.6 | AA17: 2.4 | AB17: 46.4
B18: Self propelled high clearance sprayer | C18: 200 | D18: 8 | E18: 8.3 | F18: 3.5 | H18: 13 | I18: 0.088 | J18: 0.094 | K18: 0.1 | L18: 0.106 | M18: 0.113 | N18: 0.12 | O18: 0.127 | P18: 0.134 | Q18: 0.141 | R18: 0.148 | S18: 0.156 | T18: 0.163 | U18: 0.171 | V18: 0.179 | X18: 30-ft vertical tillage | Y18: 270 | Z18: 27.2 | AA18: 2.4 | AB18: 66
B19: Mower/conditioner | C19: 150 | D19: 15 | E19: 4.4 | F19: 2.3 | H19: 14 | I19: 0.083 | J19: 0.089 | K19: 0.095 | L19: 0.101 | M19: 0.108 | N19: 0.114 | O19: 0.121 | P19: 0.128 | Q19: 0.136 | R19: 0.143 | S19: 0.151 | T19: 0.159 | U19: 0.167 | V19: 0.175 | X19: 43-ft vertical tillage | Y19: 370 | Z19: 39.2 | AA19: 2.3 | AB19: 90.4
B20: Balers, round | C20: 100 | D20: 15 | E20: 4.4 | F20: 1.5 | H20: 15 | I20: 0.078 | J20: 0.084 | K20: 0.09 | L20: 0.096 | M20: 0.103 | N20: 0.11 | O20: 0.117 | P20: 0.124 | Q20: 0.131 | R20: 0.139 | S20: 0.147 | T20: 0.155 | U20: 0.163 | V20: 0.171 | X20: 12-row strip tillage | Y20: 290 | Z20: 17.5 | AA20: 4 | AB20: 70.9
B21: Balers, large square | C21: 150 | D21: 15 | E21: 4.4 | F21: 1.7 | H21: 16 | I21: 0.074 | J21: 0.08 | K21: 0.086 | L21: 0.092 | M21: 0.099 | N21: 0.106 | O21: 0.113 | P21: 0.12 | Q21: 0.128 | R21: 0.136 | S21: 0.143 | T21: 0.151 | U21: 0.16 | V21: 0.168 | X21: 6R – 30-in. row crop planter | Y21: 95 | Z21: 7.6 | AA21: 3.1 | AB21: 23.2
B22: Balers, small square | C22: 100 | D22: 20 | E22: 3.3 | F22: 1 | H22: 17 | I22: 0.07 | J22: 0.076 | K22: 0.082 | L22: 0.089 | M22: 0.095 | N22: 0.102 | O22: 0.11 | P22: 0.117 | Q22: 0.125 | R22: 0.132 | S22: 0.14 | T22: 0.149 | U22: 0.157 | V22: 0.165 | X22: 12R – 30-in. row crop planter | Y22: 140 | Z22: 15.3 | AA22: 2.2 | AB22: 34.2
B23: Self propelled forage harvesters | C23: 400 | D23: 10 | E23: 6.7 | F23: 8 | H23: 18 | I23: 0.067 | J23: 0.073 | K23: 0.079 | L23: 0.086 | M23: 0.092 | N23: 0.099 | O23: 0.107 | P23: 0.114 | Q23: 0.122 | R23: 0.13 | S23: 0.138 | T23: 0.146 | U23: 0.155 | V23: 0.163 | X23: 16R – 30-in. row crop planter | Y23: 155 | Z23: 20.4 | AA23: 1.9 | AB23: 37.9
B24: Manure spreaders | C24: 100 | D24: 10 | E24: 6.7 | F24: 4.4 | H24: 19 | I24: 0.064 | J24: 0.07 | K24: 0.076 | L24: 0.083 | M24: 0.09 | N24: 0.097 | O24: 0.104 | P24: 0.112 | Q24: 0.12 | R24: 0.128 | S24: 0.136 | T24: 0.144 | U24: 0.153 | V24: 0.161 | X24: 6R – 30-in. minimum-till planter | Y24: 75 | Z24: 6.4 | AA24: 2.9 | AB24: 18.3
B25: Source: Farm Machinery Custom and Rental Rate Guide, Saskatchewan Ministry of Agriculture, 2018–19. | H25: 20 | I25: 0.061 | J25: 0.067 | K25: 0.074 | L25: 0.08 | M25: 0.087 | N25: 0.094 | O25: 0.102 | P25: 0.11 | Q25: 0.117 | R25: 0.126 | S25: 0.134 | T25: 0.142 | U25: 0.151 | V25: 0.16 | X25: 12R – 30-in. minimum-till planter | Y25: 155 | Z25: 15.3 | AA25: 2.5 | AB25: 37.9
H26: Source: Estimating Farm Machinery Costs, Edwards, William, Iowa State University, 2015. | X26: 16R – 30-in. minimum-till planter | Y26: 225 | Z26: 20.4 | AA26: 2.7 | AB26: 55
X27: 25-ft grain drill | Y27: 140 | Z27: 11.7 | AA27: 2.9 | AB27: 34.2
H28: Tractor example using Table 3 and 4: | X28: 35-ft grain drill | Y28: 225 | Z28: 16.3 | AA28: 3.4 | AB28: 55
I29: 310 Horsepower (HP) Four Wheel Drive (4WD) Tractor | X29: 12-ft presswheel drill | Y29: 75 | Z29: 5.1 | AA29: 3.6 | AB29: 18.3
B30: EXAMPLE | C30: Accumulated Repair Cost Calculation | H30: Purchase price | I30: 470000 | X30: 20-ft presswheel drill | Y30: 140 | Z30: 8.5 | AA30: 4 | AB30: 34.2
B31: New 375 HP Combine Cost | C31: $660,000 = $478,000 (combine) + $ 122,000 (corn head) + $60,000 (grain head) | H31: Projected use | I31: 450 hr per year for 5 years | X31: 15-ft no-till drill | Y31: 140 | Z31: 7 | AA31: 4.9 | AB31: 34.2
B32: Estimated annual repair rates | C32: 2.5% combine | H32: Depreciaton | I32: Estimated total depreciation over the 5 years: | X32: 20-ft no-till drill | Y32: 175 | Z32: 9.3 | AA32: 4.6 | AB32: 42.8
C33: 2.8% corn head | I33: = 4.4% annual depreciation rate (from Table 3, 4WD tractors) x 5 years x $470,000 = $103,400 total depreciation | X33: 90-ft sprayer, pull type | Y33: 95 | Z33: 49.6 | AA33: 0.5 | AB33: 23.2
B34: from Table 3 | C34: 2.5% grain head | H34: Trade-in value | I34: = $470,000 (purchase price) – $103,400 (total depreciation) = $366,600 | X34: 90-ft sprayer, self propelled | Y34: 85 | Z34: 72.5 | AA34: 0.3 | AB34: 20.8
B35: Estimated annual repair costs | C35: Combine: $478,000 x 2.5% for an average of $11,950/year | X35: 9-ft mower conditioner | Y35: 40 | Z35: 4.4 | AA35: 2.2 | AB35: 9.8
C36: Corn head: $122,000 x 2.8% for an average of $3,416/year | H36: Capital recovery: | X36: 13-ft rotary mower/conditioner | Y36: 75 | Z36: 9.7 | AA36: 1.9 | AB36: 18.3
C37: Grain head: $60,000 x 2.5% for an average of 1,500/year | I37: = (total depreciation x capital recovery factor)+ (trade-in value x interest rate) | X37: Square baler | Y37: 40 | Z37: 4.4 | AA37: 2.2 | AB37: 9.8
C38: Total annual repair costs = $11,950 + $3,416 + $1,500 = $16,866 per year | I38: = ($103,400 x 0.218 (from Table 5, 3% interest and 5 years)) + ($366,600 x 3%) | X38: Round baler 1,000 lb | Y38: 60 | Z38: 3 | AA38: 4.9 | AB38: 14.7
B39: Used Machinery | C39: When calculating the depreciation on used machinery, use the actual price paid | I39: = $22,541 + $10,998 | X39: Round baler 1,500 lb | Y39: 60 | Z39: 4 | AA39: 3.7 | AB39: 14.7
C40: for the machine minus its expected trade-in or salvage value, divided by the | I40: = $33,539 per year capital recovery (depreciation and interest costs). | X40: Large size square baler | Y40: 140 | Z40: 16.3 | AA40: 2.1 | AB40: 34.2
C41: expected life of the machine on your farm. Increase repair rates to levels | X41: Round baler 1,000 lb/wrapper | Y41: 60 | Z41: 3 | AA41: 4.9 | AB41: 14.7
C42: appropriate for the age or number of hours on the machine. Expect to have | X42: 2-row forage harvester | Y42: 140 | Z42: 1.4 | AA42: 24.4 | AB42: 34.2
C43: higher than normal repair expenses in the first year of ownership of a | X43: Self-propelled forage harvester, 6 row, 15 ft | Y43: 625 | Z43: 5.1 | AA43: 11.2 | AB43: 56.8
C44: used machine as you bring it back into top operating shape | X44: Large forage blower | Y44: 60 | Z44: — | AA44: — | AB44: 14.7
X45: Combine 6R – 30-in. corn hd | Y45: 275 | Z45: 5.1 | AA45: 13.2 | AB45: 67.2
X46: Combine 12R – 30-in. corn hd | Y46: 375 | Z46: 10.2 | AA46: 9 | AB46: 91.6
X47: Combine grain head 25 ft | Y47: 375 | Z47: 7.4 | AA47: 12.4 | AB47: 91.6
X48: Combine grain head 35 ft | Y48: 375 | Z48: 10.4 | AA48: 8.8 | AB48: 91.6
B49: End of worksheet | H49: End of worksheet | X49: 1. Power take off horsepower
X50: 2. Source: Illinois Machinery Cost Estimates for 2019, University of Illinois, Department of Agricultural and Consumer Economics, 2019.
X51: 3. Source: Nebraska Tractor Test Laboratory, 2008–2017. Tractor fuel consumption results.
X54: End of worksheet

Sheet Factsheet
A21: Double click to view file as an Adobe pdf document
A32: End of worksheet

Sheet 2018Rates
B1: Survey of Ontario Custom Farmwork Rates
B2: charged in 2018
B3: John Molenhuis, OMAFRA, Business Analysis and Cost of Production Specialist
B4: Infosheet
B5: Survey Details
B6: Survey results of rates charged in 2018 by 200 Ontario custom farmwork operators are summarized on a provincial basis and also by 6 smaller regional areas.
B7: Where available the provincial average 2015 rates are also listed. The 2015 survey is the previous survey to the 2018 survey.
B8: Average Rates
B9: An average rate is given when there are at least 3 reports. The greater the number of reports, the greater the summary reflects the market rates.
B11: What are percentiles and how can you use them?
B13: Percentiles have been used to help show the range of the rates that were charged. For example, in the Provincial Summary, the 15th percentile
B14: for corn combining with grain buggy is $43/acre and the 85th percentile is $54/acre. This means that 15% of those surveyed charged $43/acre or less
B15: and 15% charged more than $54. Seventy percent (85th –15th percentile) of all those reporting charged between $43 and $54/acre. The average rate charged was $48/acre.
B17: Survey Areas
B19: Area 1
B20: Chatham-Kent, Elgin, Essex, Lambton, Middlesex
B21: Area 2
B22: Brant, Haldimand, Hamilton, Niagara, Norfolk, Oxford
B23: Area 3
B24: Bruce, Dufferin, Grey, Halton, Huron, Peel, Perth, Simcoe, Waterloo, Wellington
B25: Area 4
B26: Durham, Haliburton, Hastings, Kawartha Lakes, Muskoka, Northumberland, Parry Sound, Peterborough, Prince Edward, York
B27: Area 5
B28: Frontenac, Lanark, Leeds-Grenville, Lennox-Addington, Ottawa, Prescott-Russell, Renfrew, Stormont-Dundas-Glengarry
B29: Area 6
B30: Algoma, Cochrane, Kenora, Manitoulin, Nipissing, Rainy River, Sudbury, Thunder Bay, Timiskaming
Z33: $CHANGE | AA33: %CHANGE
Y34: MAX | Z34: =MAX(Z37:Z227) -> 
Y35: MIN
Y36: AVG
Z37: =E38-H38 -> 0 | AA37: =(E38-H38)/H38 -> 
Z39: =E40-H40 -> 0 | AA39: =(E40-H40)/H40 -> 
Z43: =E44-H44 -> 0 | AA43: =(E44-H44)/H44 -> 
B45: Table 8. Survey of Custom Farmwork Rates charged in 2018 | Z45: =E46-H46 -> 0 | AA45: =(E46-H46)/H46 -> 
B46: CUSTOM OPERATION | D46: Provincial | I46: Area 1 | K46: Area 2 | M46: Area 3 | O46: Area 4 | Q46: Area 5 | S46: Area 6
C47: Unit | D47: # | E47: 2018 | F47: 2018 Percentile | H47: 2015 | I47: # | J47: 2018 | K47: # | L47: 2018 | M47: # | N47: 2018 | P47: 2018 | R47: 2018 | T47: 2018
E48: ave. | F48: 15th | G48: 85th | H48: ave. | J48: ave. | L48: ave. | N48: ave. | O48: # | P48: ave. | Q48: # | R48: ave. | S48: # | T48: ave.
B49: TILLAGE
B50: Moldboard Plow | C50: ac. | D50: 44 | E50: 32.67478355 | F50: 25 | G50: 39.1 | H50: 28.78205128 | I50: 15 | J50: 32.06666667 | K50: 4 | L50: 33 | M50: 18 | N50: 31.96296296 | O50: — | P50: — | Q50: 4 | R50: 37.33928571 | S50: — | T50: —
C51: hr. | D51: 36 | E51: 133.4027778 | F51: 96.25 | G51: 172.875 | H51: 130 | I51: 13 | J51: 156.3846154 | K51: — | L51: — | M51: 15 | N51: 114.4666667 | O51: — | P51: — | Q51: 4 | R51: 152.625 | S51: — | T51: —
B52: Chisel Plow/Soil Saver | C52: ac. | D52: 55 | E52: 26.1 | F52: 20.1 | G52: 30 | H52: 24 | I52: 18 | J52: 27.22222222 | K52: 12 | L52: 24.91666667 | M52: 18 | N52: 24.08333333 | O52: — | P52: — | Q52: 6 | R52: 31.33333333 | S52: — | T52: —
C53: hr. | D53: 38 | E53: 221.3947368 | F53: 150 | G53: 303.6 | H53: 190 | I53: 11 | J53: 241.6363636 | K53: 8 | L53: 212.125 | M53: 14 | N53: 222.7142857 | O53: — | P53: — | Q53: 5 | R53: 188 | S53: — | T53: —
B54: Disc -Primary tillage | C54: ac. | D54: 36 | E54: 21.47222222 | F54: 16 | G54: 25 | H54: 19 | I54: 11 | J54: 21.40909091 | K54: — | L54: — | M54: 15 | N54: 21.83333333 | O54: 3 | P54: 19.66666667 | Q54: 5 | R54: 20.6 | S54: — | T54: — | Z54: =E55-H55 -> 36.33333333 | AA54: =(E55-H55)/H55 -> 0.1705790297
C55: hr. | D55: 24 | E55: 249.3333333 | F55: 120 | G55: 300 | H55: 213 | I55: 6 | J55: 294 | K55: — | L55: — | M55: 11 | N55: 247.6363636 | O55: — | P55: — | Q55: 4 | R55: 225 | S55: — | T55: —
B56: Disc -Secondary tillage | C56: ac. | D56: 33 | E56: 18.46632997 | F56: 14.8 | G56: 25 | H56: 17 | I56: 10 | J56: 17.75 | K56: 6 | L56: 18.25 | M56: 8 | N56: 19.375 | O56: — | P56: — | Q56: 8 | R56: 18.42361111 | S56: — | T56: — | Z56: =E57-H57 -> 37.19565217 | AA56: =(E57-H57)/H57 -> 0.1754511895
C57: hr. | D57: 23 | E57: 249.1956522 | F57: 153 | G57: 354 | H57: 212 | I57: 7 | J57: 280.5714286 | K57: 4 | L57: 295.625 | M57: 5 | N57: 249.2 | O57: — | P57: — | Q57: 7 | R57: 191.2857143 | S57: — | T57: —
B58: Offset disc | C58: ac. | D58: 13 | E58: 24.60761461 | F58: 15.46666667 | G58: 30 | I58: 4 | J58: 23 | K58: — | L58: — | M58: 3 | N58: 20.37037037 | O58: — | P58: — | Q58: 6 | R58: 27.7979798 | S58: — | T58: — | Z58: =E59-H59 ->  | AA58: =(E59-H59)/H59 -> 
C59: hr. | D59: 7 | E59: 191 | F59: — | G59: — | H59: — | I59: — | J59: — | K59: — | L59: — | M59: — | N59: — | O59: — | P59: — | Q59: 4 | R59: 154.5 | S59: — | T59: —
B60: Vertical tillage | C60: ac. | D60: 56 | E60: 21.78571429 | F60: 17.25 | G60: 25.75 | H60: 20 | I60: 17 | J60: 22 | K60: 9 | L60: 19.22222222 | M60: 16 | N60: 20.6875 | O60: 6 | P60: 24.33333333 | Q60: 7 | R60: 24.42857143 | S60: — | T60: — | Z60: =E61-H61 -> 60.47727273 | AA60: =(E61-H61)/H61 -> 0.2144584139
C61: hr. | D61: 44 | E61: 342.4772727 | F61: 177.25 | G61: 500 | H61: 282 | I61: 12 | J61: 419.0833333 | K61: 6 | L61: 308 | M61: 12 | N61: 306.8333333 | O61: 6 | P61: 313.3333333 | Q61: 7 | R61: 325.7142857 | S61: — | T61: —
B62: Zone tillage | C62: — | D62: — | E62: — | F62: — | G62: — | H62: — | I62: — | J62: — | K62: — | L62: — | M62: — | N62: — | O62: — | P62: — | Q62: — | R62: — | S62: — | T62: — | Z62: =E63-H63 -> 3.2 | AA62: =(E63-H63)/H63 -> 0.1391304348
B63: with fertilizer | C63: ac. | D63: 5 | E63: 26.2 | F63: — | G63: — | H63: 23 | I63: — | J63: — | K63: — | L63: — | M63: — | N63: — | O63: — | P63: — | Q63: — | R63: — | S63: — | T63: —
C64: hr. | D64: 3 | E64: 377.3333333 | F64: — | G64: — | H64: 426 | I64: — | J64: — | K64: — | L64: — | M64: — | N64: — | O64: — | P64: — | Q64: — | R64: — | S64: — | T64: —
B65: Strip tillage | C65: ac. | D65: 14 | E65: 28.32142857 | F65: 21.9 | G65: 35.05 | I65: 5 | J65: 29.9 | K65: 3 | L65: 36.33333333 | M65: 6 | N65: 23 | O65: — | P65: — | Q65: — | R65: — | S65: — | T65: — | Z65: =E66-H66 ->  | AA65: =(E66-H66)/H66 -> 
C66: hr. | D66: 6 | E66: 354 | F66: — | G66: — | I66: — | J66: — | K66: — | L66: — | M66: 4 | N66: 357.25 | O66: — | P66: — | Q66: — | R66: — | S66: — | T66: —
B67: V ripping | C67: ac. | D67: 3 | E67: 30.33333333 | F67: — | G67: — | I67: 3 | J67: 30.33333333 | K67: — | L67: — | M67: — | N67: — | O67: — | P67: — | Q67: — | R67: — | S67: — | T67: — | Z67: =#REF!-#REF! ->  | AA67: =(#REF!-#REF!)/#REF! -> 
B68: Field Cultivate | C68: ac. | D68: 91 | E68: 16.37467295 | F68: 12 | G68: 20 | H68: 13.9443271 | I68: 25 | J68: 16.8 | K68: 13 | L68: 16.34615385 | M68: 31 | N68: 14.64285714 | O68: 6 | P68: 17.16666667 | Q68: 14 | R68: 19.69047619 | S68: — | T68: —
C69: hr. | D69: 63 | E69: 337.3174603 | F69: 151.8 | G69: 525 | H69: 241 | I69: 17 | J69: 337.0588235 | K69: 8 | L69: 365.125 | M69: 21 | N69: 344.4761905 | O69: 4 | P69: 251.25 | Q69: 12 | R69: 340.9166667 | S69: — | T69: — | Z69: =E70-H70 -> 7.944444444 | AA69: =(E70-H70)/H70 -> 1.125984252
B70: Harrowing | C70: ac. | D70: 4 | E70: 15 | F70: — | G70: — | H70: 7.055555556 | I70: — | J70: — | K70: — | L70: — | M70: — | N70: — | O70: — | P70: — | Q70: — | R70: — | S70: — | T70: —
B71: Deep tillage/Subsoiling | C71: ac. | D71: 12 | E71: 32 | F71: 23 | G71: 40 | H71: 29 | I71: 6 | J71: 32 | K71: — | L71: — | M71: — | N71: — | O71: — | P71: — | Q71: — | R71: — | S71: — | T71: — | Z71: -3.78125 | AA71: -0.0175872093
C72: hr. | D72: 8 | E72: 211.21875 | F72: 168.6625 | G72: 243.95 | H72: 215 | I72: 3 | J72: 252.6666667 | K72: — | L72: — | M72: — | N72: — | O72: — | P72: — | Q72: — | R72: — | S72: — | T72: —
B73: Soil finisher | C73: ac. | D73: 5 | E73: 15.48333333 | F73: — | G73: — | H73: — | I73: — | J73: — | K73: — | L73: — | M73: — | N73: — | O73: — | P73: — | Q73: — | R73: — | S73: — | T73: —
C74: hr. | D74: 5 | E74: 221 | F74: — | G74: — | H74: — | I74: — | J74: — | K74: — | L74: — | M74: — | N74: — | O74: — | P74: — | Q74: — | R74: — | S74: — | T74: —
B75: Packer/Rolling | C75: ac. | D75: 46 | E75: 7.916666667 | F75: 5 | G75: 10.25 | H75: 7.386363636 | I75: 7 | J75: 8.642857143 | K75: 6 | L75: 7.583333333 | M75: 18 | N75: 7.342592593 | O75: 4 | P75: 10.75 | Q75: 11 | R75: 7.545454545 | S75: — | T75: — | Z75: 42.03846154 | AA75: 0.284043659
C76: hr. | D76: 26 | E76: 190.0384615 | F76: 95 | G76: 300 | H76: 148 | I76: — | J76: — | K76: 4 | L76: 160.5 | M76: 9 | N76: 204.6666667 | O76: — | P76: — | Q76: 9 | R76: 186.1111111 | S76: — | T76: —
B77: Stalk Chopping | C77: ac. | D77: 12 | E77: 17.08333333 | F77: 11.2 | G77: 24.1 | H77: 14 | I77: 8 | J77: 20 | K77: — | L77: — | M77: — | N77: — | O77: — | P77: — | Q77: — | R77: — | S77: — | T77: — | Z77: -6.571428571 | AA77: -0.03934987169
C78: hr. | D78: 7 | E78: 160.4285714 | F78: — | G78: — | H78: 167 | I78: 4 | J78: 203 | K78: — | L78: — | M78: — | N78: — | O78: — | P78: — | Q78: — | R78: — | S78: — | T78: —
B79: PLANTING
B80: SOYBEANS
B82: Conventional Row Planter | C82: ac. | D82: 43 | E82: 24.3255814 | F82: 20 | G82: 29.4 | H82: 21 | I82: 13 | J82: 22.07692308 | K82: 5 | L82: 27.4 | M82: 12 | N82: 23 | O82: 5 | P82: 26 | Q82: 8 | R82: 27 | S82: — | T82: —
C83: hr. | D83: 24 | E83: 394.2916667 | F83: 151.2 | G83: 544.25 | H83: 302 | I83: 7 | J83: 446.4285714 | K83: — | L83: — | M83: 6 | N83: 429 | O83: 4 | P83: 314.5 | Q83: 5 | R83: 341.2 | S83: — | T83: —
B84: Minimum/No-Till Planter | C84: ac. | D84: 56 | E84: 25.74107143 | F84: 22 | G84: 30 | H84: 24.8362069 | I84: 21 | J84: 23.85714286 | K84: 5 | L84: 23.4 | M84: 14 | N84: 24.10714286 | O84: 4 | P84: 30 | Q84: 12 | R84: 30.5 | S84: — | T84: —
C85: hr. | D85: 34 | E85: 309.0294118 | F85: 175 | G85: 475.25 | H85: 346 | I85: 15 | J85: 301.7333333 | K85: 3 | L85: 218.6666667 | M85: 6 | N85: 385.6666667 | O85: — | P85: — | Q85: 8 | R85: 316.375 | S85: — | T85: —
B87: Strip tillage planter | C87: ac. | D87: 8 | E87: 26.125 | F87: 24 | G87: 29.9 | H87: — | I87: — | J87: — | K87: 3 | L87: 27 | M87: 3 | N87: 24.33333333 | O87: — | P87: — | Q87: — | R87: — | S87: — | T87: —
C88: hr. | D88: 4 | E88: 388.25 | F88: — | G88: — | H88: — | I88: — | J88: — | K88: — | L88: — | M88: 3 | N88: 456.3333333 | O88: — | P88: — | Q88: — | R88: — | S88: — | T88: —
B89: Conventional Drill | C89: ac. | D89: 10 | E89: 23.6 | F89: 19.05 | G89: 28.6 | H89: 20 | I89: 4 | J89: 21 | K89: — | L89: — | M89: 4 | N89: 23 | O89: — | P89: — | Q89: — | R89: — | S89: — | T89: —
C90: hr. | D90: 4 | E90: 337.25 | F90: — | G90: — | H90: 183 | I90: — | J90: — | K90: — | L90: — | M90: — | N90: — | O90: — | P90: — | Q90: — | R90: — | S90: — | T90: — | Z90: =E91-H91 -> 1.736842105 | AA90: =(E91-H91)/H91 -> 0.07236842105
B91: No-Till Drill | C91: ac. | D91: 57 | E91: 25.73684211 | F91: 20.4 | G91: 30 | H91: 24 | I91: 14 | J91: 23.5 | K91: 9 | L91: 22.77777778 | M91: 14 | N91: 23.14285714 | O91: 10 | P91: 28.4 | Q91: 9 | R91: 32.88888889 | S91: — | T91: —
C92: hr. | D92: 43 | E92: 285.8953488 | F92: 135.6 | G92: 500 | H92: 246 | I92: 9 | J92: 309.2222222 | K92: 6 | L92: 238.6666667 | M92: 10 | N92: 305.4 | O92: 10 | P92: 194 | Q92: 7 | R92: 378.5 | S92: — | T92: — | Z92: =E93-H93 -> 1.125 | AA92: =(E93-H93)/H93 -> 0.046875
B93: Air Seeder without fertilizer | C93: ac. | D93: 24 | E93: 25.125 | F93: 22 | G93: 27.55 | H93: 24 | I93: 5 | J93: 25.2 | K93: — | L93: — | M93: 12 | N93: 24.41666667 | O93: 3 | P93: 25.66666667 | Q93: 3 | R93: 27.33333333 | S93: — | T93: —
C94: hr. | D94: 15 | E94: 484.6666667 | F94: 340.5 | G94: 537.3 | H94: 422 | I94: 3 | J94: 319.3333333 | K94: — | L94: — | M94: 8 | N94: 476.125 | O94: — | P94: — | Q94: — | R94: — | S94: — | T94: —
B95: Air Seeder with fertilizer | C95: ac. | D95: 33 | E95: 26.3030303 | F95: 23.8 | G95: 30 | H95: 24.53846154 | I95: 6 | J95: 25.83333333 | K95: 4 | L95: 26.75 | M95: 14 | N95: 25.07142857 | O95: — | P95: — | Q95: 7 | R95: 28.71428571 | S95: — | T95: — | Z95: =E96-H96 -> 36.08695652 | AA95: =(E96-H96)/H96 -> 0.08910359635
C96: hr. | D96: 23 | E96: 441.0869565 | F96: 291.6 | G96: 536.4 | H96: 405 | I96: 4 | J96: 467.25 | K96: 3 | L96: 311 | M96: 10 | N96: 448.5 | O96: — | P96: — | Q96: 6 | R96: 476.3333333 | S96: — | T96: —
Z97: =#REF!-#REF! ->  | AA97: =(#REF!-#REF!)/#REF! -> 
B98: Table 8. Survey of Custom Farmwork Rates charged in 2018 (cont'd) | Z98: =E99-H99 -> 0 | AA98: =(E99-H99)/H99 -> 
B99: CUSTOM OPERATION | D99: Provincial | I99: Area 1 | K99: Area 2 | M99: Area 3 | O99: Area 4 | Q99: Area 5 | S99: Area 6
C100: Unit | D100: # | E100: 2018 | F100: 2018 Percentile | H100: 2015 | I100: # | J100: 2018 | K100: # | L100: 2018 | M100: # | N100: 2018 | P100: 2018 | R100: 2018 | T100: 2018 | Z100: =E101-H101 ->  | AA100: =(E101-H101)/H101 -> 
E101: ave. | F101: 15th | G101: 85th | H101: ave. | J101: ave. | L101: ave. | N101: ave. | O101: # | P101: ave. | Q101: # | R101: ave. | S101: # | T101: ave.
B102: PLANTING | Z102: =E103-H103 -> 0 | AA102: =(E103-H103)/H103 -> 
B103: CORN
B104: Conventional Row Planter
B105: Row width 29 in. or less
B106: with starter fertilizer | C106: ac. | D106: 14 | E106: 25.57142857 | F106: 20.95 | G106: 30 | H106: 20.81578947 | I106: 8 | J106: 24.625 | K106: — | L106: — | M106: — | N106: — | O106: — | P106: — | Q106: — | R106: — | S106: — | T106: —
C107: hr. | D107: 5 | E107: 323.8 | F107: — | G107: — | H107: 270 | I107: — | J107: — | K107: — | L107: — | M107: — | N107: — | O107: — | P107: — | Q107: — | R107: — | S107: — | T107: — | Z107: =E108-H108 -> 1.333333333 | AA107: =(E108-H108)/H108 -> 0.06060606061
B108: without starter fertilizer | C108: ac. | D108: 3 | E108: 23.33333333 | F108: — | G108: — | H108: 22 | I108: — | J108: — | K108: — | L108: — | M108: — | N108: — | O108: — | P108: — | Q108: — | R108: — | S108: — | T108: —
B109: Row width 30 in. or more
B110: with starter fertilizer | C110: ac. | D110: 68 | E110: 24.88655462 | F110: 20 | G110: 30 | H110: 22 | I110: 17 | J110: 24.70588235 | K110: 9 | L110: 24 | M110: 22 | N110: 23.95454545 | O110: 7 | P110: 27.46938776 | Q110: 12 | R110: 26.16666667 | S110: — | T110: —
C111: hr. | D111: 46 | E111: 330.7608696 | F111: 194.25 | G111: 485 | H111: 314.5789474 | I111: 15 | J111: 314 | K111: 6 | L111: 394.3333333 | M111: 10 | N111: 318.2 | O111: 5 | P111: 370.2 | Q111: 10 | R111: 310.6 | S111: — | T111: — | Z111: =E112-H112 -> 3.166666667 | AA111: =(E112-H112)/H112 -> 0.1583333333
B112: without starter fertilizer | C112: ac. | D112: 12 | E112: 23.16666667 | F112: 19.3 | G112: 27.35 | H112: 20 | I112: — | J112: — | K112: — | L112: — | M112: 6 | N112: 20.66666667 | O112: — | P112: — | Q112: — | R112: — | S112: — | T112: —
C113: hr. | D113: 6 | E113: 430 | F113: — | G113: — | H113: 299 | I113: — | J113: — | K113: — | L113: — | M113: 3 | N113: 310 | O113: — | P113: — | Q113: — | R113: — | S113: — | T113: — | Z113: 0
B114: Minimum/No-Till
B115: Row width 29 in. or less | Z115: 2.857142857 | AA115: 0.1142857143
B116: with starter fertilizer | C116: ac. | D116: 7 | E116: 27.85714286 | F116: — | G116: — | H116: 25 | I116: — | J116: — | K116: — | L116: — | M116: — | N116: — | O116: — | P116: — | Q116: — | R116: — | S116: — | T116: —
C117: hr. | D117: 3 | E117: 409.3333333 | F117: — | G117: — | H117: — | I117: — | J117: — | K117: — | L117: — | M117: — | N117: — | O117: — | P117: — | Q117: — | R117: — | S117: — | T117: —
B118: without starter fertilizer | C118: ac. | D118: 4 | E118: 28.5 | F118: — | G118: — | H118: — | I118: — | J118: — | K118: — | L118: — | M118: — | N118: — | O118: — | P118: — | Q118: — | R118: — | S118: — | T118: —
B119: Row width 30 in. or more
B120: with starter fertilizer | C120: ac. | D120: 28 | E120: 28.64285714 | F120: 24 | G120: 33.9 | H120: 26.15 | I120: 8 | J120: 24.75 | K120: — | L120: — | M120: 7 | N120: 27.57142857 | O120: 4 | P120: 30 | Q120: 7 | R120: 33.42857143 | S120: — | T120: — | Z120: =E121-H121 -> 26.29411765 | AA120: =(E121-H121)/H121 -> 0.09631544926
C121: hr. | D121: 17 | E121: 299.2941176 | F121: 157.2 | G121: 390 | H121: 273 | I121: 5 | J121: 197.6 | K121: — | L121: — | M121: 5 | N121: 393 | O121: — | P121: — | Q121: 4 | R121: 336.25 | S121: — | T121: —
B122: without starter fertilizer | C122: ac. | D122: 4 | E122: 28.125 | F122: — | G122: — | H122: 26.41666667 | I122: — | J122: — | K122: — | L122: — | M122: 3 | N122: 27.5 | O122: — | P122: — | Q122: — | R122: — | S122: — | T122: — | Z122: =E123-H123 -> 0 | AA122: =(E123-H123)/H123 -> 
B123: Strip Tillage Planter
B124: Row width 29 in. or less | Z124: =E125-H125 ->  | AA124: =(E125-H125)/H125 -> 
B125: with starter fertilizer | C125: ac. | D125: 3 | E125: 27.33333333 | F125: — | G125: — | H125: — | I125: — | J125: — | K125: — | L125: — | M125: — | N125: — | O125: — | P125: — | Q125: — | R125: — | S125: — | T125: —
B126: Row width 30 in. or more
B127: with starter fertilizer | C127: ac. | D127: 6 | E127: 29.33333333 | F127: — | G127: — | H127: — | I127: — | J127: — | K127: 3 | L127: 32 | M127: — | N127: — | O127: — | P127: — | Q127: — | R127: — | S127: — | T127: —
B128: CEREALS (OATS, BARLEY, WHEAT)
B129: Conventional Drill
B130: with starter fertilizer | C130: ac. | D130: 12 | E130: 22.33333333 | F130: 16 | G130: 30 | H130: 18.6875 | I130: 4 | J130: 20.5 | K130: — | L130: — | M130: 5 | N130: 21 | O130: — | P130: — | Q130: — | R130: — | S130: — | T130: — | Z130: =E131-H131 -> 25.95833333 | AA130: =(E131-H131)/H131 -> 0.1548210736
C131: hr. | D131: 8 | E131: 193.625 | F131: 81.4 | G131: 349.7 | H131: 167.6666667 | I131: — | J131: — | K131: — | L131: — | M131: 4 | N131: 99.5 | O131: — | P131: — | Q131: — | R131: — | S131: — | T131: —
B132: without starter fertilizer | C132: ac. | D132: 11 | E132: 22.36363636 | F132: 18 | G132: 25.5 | H132: 18 | I132: — | J132: — | K132: — | L132: — | M132: 5 | N132: 22.4 | O132: — | P132: — | Q132: 3 | R132: 24.66666667 | S132: — | T132: — | Z132: =E133-H133 -> 17.83333333 | AA132: =(E133-H133)/H133 -> 0.1165577342
C133: hr. | D133: 6 | E133: 170.8333333 | F133: — | G133: — | H133: 153 | I133: — | J133: — | K133: — | L133: — | M133: — | N133: — | O133: — | P133: — | Q133: 4 | R133: 202.5 | S133: — | T133: —
B134: No-Till Drill
B135: with starter fertilizer | C135: ac. | D135: 34 | E135: 27.08823529 | F135: 22 | G135: 30.1 | H135: 24 | I135: 9 | J135: 25.88888889 | K135: 5 | L135: 23.8 | M135: 10 | N135: 25.7 | O135: 5 | P135: 31.2 | Q135: 4 | R135: 32 | S135: — | T135: —
C136: hr. | D136: 20 | E136: 270.45 | F136: 153.4 | G136: 457.5 | H136: 247 | I136: 6 | J136: 250.6666667 | K136: 3 | L136: 203 | M136: 6 | N136: 336 | O136: — | P136: — | Q136: 3 | R136: 266.6666667 | S136: — | T136: — | Z136: =E137-H137 -> 0.4090909091 | AA136: =(E137-H137)/H137 -> 0.01704545455
B137: without starter fertilizer | C137: ac. | D137: 22 | E137: 24.40909091 | F137: 20 | G137: 29.55 | H137: 24 | I137: 3 | J137: 24 | K137: 3 | L137: 20.33333333 | M137: 9 | N137: 22 | O137: 4 | P137: 28.25 | Q137: 3 | R137: 31 | S137: — | T137: —
C138: hr. | D138: 14 | E138: 259.0357143 | F138: 167.6 | G138: 311 | H138: 268 | I138: 3 | J138: 246.3333333 | K138: — | L138: — | M138: 3 | N138: 206.6666667 | O138: 3 | P138: 185.6666667 | Q138: 3 | R138: 314.1666667 | S138: — | T138: —
B139: Air Seeder without fertilizer | C139: ac. | D139: 15 | E139: 26.4 | F139: 24.1 | G139: 30 | H139: 23.66666667 | I139: — | J139: — | K139: — | L139: — | M139: 5 | N139: 25.6 | O139: 3 | P139: 25.66666667 | Q139: 3 | R139: 29.66666667 | S139: — | T139: — | Z139: =E140-H140 -> -36.375 | AA139: =(E140-H140)/H140 -> -0.08304794521
C140: hr. | D140: 8 | E140: 401.625 | F140: 341 | G140: 497 | H140: 438 | I140: — | J140: — | K140: — | L140: — | M140: 3 | N140: 446.6666667 | O140: — | P140: — | Q140: — | R140: — | S140: — | T140: —
B141: Air Seeder with fertilizer | C141: ac. | D141: 31 | E141: 25.58064516 | F141: 23.5 | G141: 29.5 | H141: 24.21052632 | I141: 5 | J141: 24.4 | K141: 5 | L141: 25 | M141: 13 | N141: 24.38461538 | O141: — | P141: — | Q141: 5 | R141: 29 | S141: — | T141: — | Z141: =E142-H142 -> 6.217391304 | AA141: =(E142-H142)/H142 -> 0.01462915601
C142: hr. | D142: 23 | E142: 431.2173913 | F142: 307.5 | G142: 536.4 | H142: 425 | I142: 5 | J142: 428.6 | K142: 4 | L142: 306.25 | M142: 10 | N142: 458 | O142: — | P142: — | Q142: 3 | R142: 506.6666667 | S142: — | T142: —
B143: FORAGES
B144: Drill | C144: ac. | D144: 28 | E144: 25.35714286 | F144: 20 | G144: 30 | H144: 23.61363636 | I144: 7 | J144: 21.28571429 | K144: 4 | L144: 24.5 | M144: 5 | N144: 24 | O144: 5 | P144: 29 | Q144: 7 | R144: 28.28571429 | S144: — | T144: — | Z144: =E145-H145 -> 5.176470588 | AA144: =(E145-H145)/H145 -> 0.02184164805
C145: hr. | D145: 17 | E145: 242.1764706 | F145: 154.8 | G145: 273.6 | H145: 237 | I145: 3 | J145: 214 | K145: — | L145: — | M145: 3 | N145: 202.6666667 | O145: 4 | P145: 212 | Q145: 5 | R145: 327 | S145: — | T145: —
B146: Brillion Type | C146: ac. | D146: 5 | E146: 21.4 | F146: — | G146: — | H146: — | I146: — | J146: — | K146: — | L146: — | M146: — | N146: — | O146: — | P146: — | Q146: — | R146: — | S146: — | T146: —
B147: Broadcast/ATV Spreading | C147: ac. | D147: 12 | E147: 5.5 | F147: 4.15 | G147: 6.525 | H147: 4.857142857 | I147: 7 | J147: 5 | K147: — | L147: — | M147: — | N147: — | O147: — | P147: — | Q147: — | R147: — | S147: — | T147: — | Z147: =E148-H148 -> 25.64285714 | AA147: =(E148-H148)/H148 -> 0.2727963526
C148: hr. | D148: 7 | E148: 119.6428571 | F148: — | G148: — | H148: 94 | I148: 3 | J148: 106.6666667 | K148: — | L148: — | M148: — | N148: — | O148: — | P148: — | Q148: — | R148: — | S148: — | T148: —
Z149: =E150-H150 -> 0 | AA149: =(E150-H150)/H150 -> 
B150: Table 8. Survey of Custom Farmwork Rates charged in 2018 (cont'd) | Z150: =E151-H151 -> 0 | AA150: =(E151-H151)/H151 -> 
B151: CUSTOM OPERATION | D151: Provincial | I151: Area 1 | K151: Area 2 | M151: Area 3 | O151: Area 4 | Q151: Area 5 | S151: Area 6
C152: Unit | D152: # | E152: 2018 | F152: 2018 Percentile | H152: 2015 | I152: # | J152: 2018 | K152: # | L152: 2018 | M152: # | N152: 2018 | P152: 2018 | R152: 2018 | T152: 2018 | Z152: =E153-H153 ->  | AA152: =(E153-H153)/H153 -> 
E153: ave. | F153: 15th | G153: 85th | H153: ave. | J153: ave. | L153: ave. | N153: ave. | O153: # | P153: ave. | Q153: # | R153: ave. | S153: # | T153: ave.
B154: WEED CONTROL | Z154: =E155-H155 -> 0 | AA154: =(E155-H155)/H155 -> 
B155: HERBICIDE (excluding herbicide cost)
B156: Pull-type Sprayer | C156: ac. | D156: 32 | E156: 10.484375 | F156: 9 | G156: 12 | H156: 9.390322581 | I156: 13 | J156: 10.42307692 | K156: 3 | L156: 11.16666667 | M156: 8 | N156: 10.1875 | O156: — | P156: — | Q156: 5 | R156: 11.2 | S156: — | T156: —
C157: hr. | D157: 26 | E157: 350.9615385 | F157: 190 | G157: 510 | H157: 358 | I157: 11 | J157: 395.4545455 | K157: — | L157: — | M157: 7 | N157: 396.4285714 | O157: — | P157: — | Q157: 4 | R157: 237.5 | S157: — | T157: — | Z157: =E158-H158 -> 0.308964092 | AA157: =(E158-H158)/H158 -> 0.03200685096
B158: Self Propelled High Clearance Sprayer | C158: ac. | D158: 79 | E158: 9.962025316 | F158: 8.675 | G158: 11.075 | H158: 9.653061224 | I158: 18 | J158: 9.722222222 | K158: 14 | L158: 9.964285714 | M158: 29 | N158: 9.905172414 | O158: 4 | P158: 10.625 | Q158: 9 | R158: 10.30555556 | S158: 5 | T158: 10
C159: hr. | D159: 35 | E159: 461.5357143 | F159: 300 | G159: 636.75 | H159: 511 | I159: 6 | J159: 374.1666667 | K159: 5 | L159: 588 | M159: 15 | N159: 483 | O159: — | P159: — | Q159: 6 | R159: 438.9583333 | S159: — | T159: — | Z159: =#REF!-#REF! ->  | AA159: =(#REF!-#REF!)/#REF! -> 
B160: MECHANICAL
B161: Inter-row cultivation | C161: ac. | D161: 6 | E161: 18 | F161: — | G161: — | H161: 14 | I161: — | J161: — | K161: — | L161: — | M161: 3 | N161: 15.33333333 | O161: — | P161: — | Q161: — | R161: — | S161: — | T161: —
C162: hr. | D162: 4 | E162: 156.25 | F162: — | G162: — | H162: 109 | I162: — | J162: — | K162: — | L162: — | M162: 3 | N162: 168.3333333 | O162: — | P162: — | Q162: — | R162: — | S162: — | T162: —
B163: Rotary Hoe | C163: ac. | D163: 6 | E163: 11.16666667 | F163: — | G163: — | I163: 5 | J163: 11.4 | K163: — | L163: — | M163: — | N163: — | O163: — | P163: — | Q163: — | R163: — | S163: — | T163: —
B164: FERTILIZER APPLICATION
B165: Spread dry fertilizer | C165: ac. | D165: 40 | E165: 9.65 | F165: 8 | G165: 11 | H165: 9 | I165: 10 | J165: 9.5 | K165: 7 | L165: 10.07142857 | M165: 13 | N165: 9.423076923 | O165: 4 | P165: 10.25 | Q165: 5 | R165: 9.2 | S165: — | T165: —
C166: hr. | D166: 24 | E166: 376.7916667 | F166: 250 | G166: 513.75 | H166: 282 | I166: 7 | J166: 379.7142857 | K166: 4 | L166: 496.25 | M166: 6 | N166: 335 | O166: — | P166: — | Q166: 4 | R166: 290 | S166: — | T166: — | Z166: =#REF!-#REF! ->  | AA166: =(#REF!-#REF!)/#REF! -> 
B167: Rental of dry bulk applicator | C167: ac. | D167: 3 | E167: 9.833333333 | F167: — | G167: — | H167: 12.4 | I167: — | J167: — | K167: — | L167: — | M167: — | N167: — | O167: — | P167: — | Q167: — | R167: — | S167: — | T167: —
C168: hr. | D168: 4 | E168: 124 | F168: — | G168: — | H168: 15.33333333 | I168: — | J168: — | K168: — | L168: — | M168: 3 | N168: 15.33333333 | O168: — | P168: — | Q168: — | R168: — | S168: — | T168: —
B169: Anhydrous | C169: ac. | D169: 5 | E169: 19.8 | F169: — | G169: — | H169: 15 | I169: 4 | J169: 21.25 | K169: — | L169: — | M169: — | N169: — | O169: — | P169: — | Q169: — | R169: — | S169: — | T169: —
C170: hr. | D170: 3 | E170: 246.6666667 | F170: — | G170: — | H170: 212 | I170: — | J170: — | K170: — | L170: — | M170: — | N170: — | O170: — | P170: — | Q170: — | R170: — | S170: — | T170: — | Z170: =E171-H171 -> 3.65034965 | AA170: =(E171-H171)/H171 -> 0.3622484386
B171: Liquid - ground | C171: ac. | D171: 11 | E171: 13.72727273 | F171: 9.75 | G171: 16.75 | H171: 10.07692308 | I171: 4 | J171: 12.375 | K171: 5 | L171: 14.5 | M171: — | N171: — | O171: — | P171: — | Q171: — | R171: — | S171: — | T171: —
C172: hr. | D172: 6 | E172: 532.5 | F172: — | G172: — | H172: 376.3333333 | I172: — | J172: — | K172: — | L172: — | M172: — | N172: — | O172: — | P172: — | Q172: — | R172: — | S172: — | T172: —
B173: Liquid side -dress | C173: ac. | D173: 22 | E173: 13.65909091 | F173: 10 | G173: 18 | H173: 13.22727273 | I173: 12 | J173: 14.29166667 | K173: 3 | L173: 13 | M173: 3 | N173: 12 | O173: — | P173: — | Q173: 4 | R173: 13.5 | S173: — | T173: — | Z173: =E174-H174 -> 18.13333333 | AA173: =(E174-H174)/H174 -> 0.06947637292
C174: hr. | D174: 15 | E174: 279.1333333 | F174: 132.8 | G174: 391.5 | H174: 261 | I174: 8 | J174: 255.625 | K174: — | L174: — | M174: — | N174: — | O174: — | P174: — | Q174: 4 | R174: 246.75 | S174: — | T174: —
B175: Prescription map service | C175: ac. | D175: 4 | E175: 2.0625 | F175: — | G175: — | H175: — | I175: — | J175: — | K175: — | L175: — | M175: — | N175: — | O175: — | P175: — | Q175: — | R175: — | S175: — | T175: — | Z175: =#REF!-#REF! ->  | AA175: =(#REF!-#REF!)/#REF! -> 
B176: Site specific soil sampling | C176: ac. | D176: 4 | E176: 11.625 | F176: — | G176: — | H176: — | I176: — | J176: — | K176: — | L176: — | M176: — | N176: — | O176: — | P176: — | Q176: — | R176: — | S176: — | T176: —
B177: INSECTICIDE/FUNGICIDE
B178: Early season application | C178: ac. | D178: 7 | E178: 10.46428571 | F178: — | G178: — | H178: 10 | I178: — | J178: — | K178: — | L178: — | M178: 5 | N178: 10 | O178: — | P178: — | Q178: — | R178: — | S178: — | T178: —
C179: hr. | D179: 5 | E179: 358.75 | F179: — | G179: — | H179: 426 | I179: — | J179: — | K179: — | L179: — | M179: 3 | N179: 366.6666667 | O179: — | P179: — | Q179: — | R179: — | S179: — | T179: —
B180: Late season application | C180: ac. | D180: 11 | E180: 11.20454545 | F180: 10 | G180: 14 | H180: 11 | I180: — | J180: — | K180: 3 | L180: 13.33333333 | M180: 6 | N180: 10 | O180: — | P180: — | Q180: — | R180: — | S180: — | T180: —
C181: hr. | D181: 8 | E181: 497.96875 | F181: 302.5 | G181: 742.5 | I181: — | J181: — | K181: — | L181: — | M181: 4 | N181: 462.5 | O181: — | P181: — | Q181: — | R181: — | S181: — | T181: —
B183: Survey of Custom Farmwork Rates charged in 2018
B184: CUSTOM OPERATION | D184: Provincial | I184: Area 1 | K184: Area 2 | M184: Area 3 | O184: Area 4 | Q184: Area 5 | S184: Area 6
C185: Unit | D185: # | E185: 2018 | F185: 2018 Percentile | H185: 2015 | I185: # | J185: 2018 | K185: # | L185: 2018 | M185: # | N185: 2018 | P185: 2018 | R185: 2018 | T185: 2018
E186: ave. | F186: 15th | G186: 85th | H186: ave. | J186: ave. | L186: ave. | N186: ave. | O186: # | P186: ave. | Q186: # | R186: ave. | S186: # | T186: ave.
B187: COMBINING
B188: CORN
B189: with grain buggy | C189: ac. | D189: 113 | E189: 47.92920354 | F189: 43 | G189: 54 | H189: 44 | I189: 32 | J189: 45.21875 | K189: 15 | L189: 50 | M189: 35 | N189: 47.11428571 | O189: 11 | P189: 49.09090909 | Q189: 19 | R189: 51.57894737 | S189: — | T189: —
C190: hr. | D190: 73 | E190: 381.5547945 | F190: 237 | G190: 500 | H190: 375 | I190: 22 | J190: 369.6363636 | K190: 9 | L190: 354.2777778 | M190: 24 | N190: 427.375 | O190: 6 | P190: 323.5 | Q190: 11 | R190: 362.2727273 | S190: — | T190: —
B191: without grain buggy | C191: ac. | D191: 21 | E191: 43.04761905 | F191: 40 | G191: 46 | H191: 44 | I191: 4 | J191: 40.25 | K191: — | L191: — | M191: 9 | N191: 44.66666667 | O191: — | P191: — | Q191: 6 | R191: 43.5 | S191: — | T191: —
C192: hr. | D192: 9 | E192: 323.6666667 | F192: 178.4 | G192: 452 | H192: 182 | I192: — | J192: — | K192: — | L192: — | M192: 3 | N192: 240.3333333 | O192: — | P192: — | Q192: 3 | R192: 349.3333333 | S192: — | T192: —
B193: SOYBEANS
B194: with grain buggy | C194: ac. | D194: 118 | E194: 46.29096045 | F194: 42 | G194: 50.45 | H194: 43.45959596 | I194: 33 | J194: 43.62121212 | K194: 17 | L194: 47.52941176 | M194: 36 | N194: 45.30555556 | O194: 11 | P194: 48.18181818 | Q194: 19 | R194: 51.47368421 | S194: — | T194: —
C195: hr. | D195: 70 | E195: 518.6571429 | F195: 350 | G195: 750 | H195: 504 | I195: 22 | J195: 521.8636364 | K195: 10 | L195: 563.3 | M195: 23 | N195: 565.9565217 | O195: 5 | P195: 330.4 | Q195: 8 | R195: 486 | S195: — | T195: —
B196: without grain buggy | C196: ac. | D196: 24 | E196: 42.94791667 | F196: 40.45 | G196: 46 | H196: 42 | I196: 5 | J196: 40 | K196: — | L196: — | M196: 10 | N196: 44.475 | O196: — | P196: — | Q196: 6 | R196: 43.5 | S196: — | T196: —
C197: hr. | D197: 9 | E197: 430.4444444 | F197: 259.6 | G197: 705.6 | H197: 217.3333333 | I197: — | J197: — | K197: — | L197: — | M197: 3 | N197: 292.3333333 | O197: — | P197: — | Q197: — | R197: — | S197: — | T197: —
B198: CEREALS
B199: with grain buggy | C199: ac. | D199: 98 | E199: 45.38095238 | F199: 40 | G199: 50 | H199: 42.38020833 | I199: 21 | J199: 43.52380952 | K199: 17 | L199: 46.11764706 | M199: 34 | N199: 44.51470588 | O199: 10 | P199: 47.5 | Q199: 13 | R199: 50.38461538 | S199: 3 | T199: 35.27777778 | Z199: =E200-H200 -> -36.81666667 | AA199: =(E200-H200)/H200 -> -0.08199703044
C200: hr. | D200: 60 | E200: 412.1833333 | F200: 215.1 | G200: 632.25 | H200: 449 | I200: 15 | J200: 420.8666667 | K200: 10 | L200: 469.6 | M200: 22 | N200: 449.9545455 | O200: 4 | P200: 264 | Q200: 7 | R200: 317.4285714 | S200: — | T200: —
B201: without grain buggy | C201: ac. | D201: 21 | E201: 41.79166667 | F201: 40 | G201: 45 | H201: 40 | I201: 3 | J201: 43.33333333 | K201: — | L201: — | M201: 10 | N201: 43.3 | O201: — | P201: — | Q201: 5 | R201: 43 | S201: — | T201: —
C202: hr. | D202: 10 | E202: 360.9 | F202: 186 | G202: 585.9 | H202: 120.3333333 | I202: — | J202: — | K202: — | L202: — | M202: 4 | N202: 240.25 | O202: — | P202: — | Q202: — | R202: — | S202: — | T202: — | Z202: =E203-H203 -> 0 | AA202: =(E203-H203)/H203 -> 
B203: CANOLA
B204: with grain buggy | C204: ac. | D204: 6 | E204: 41.75 | F204: — | G204: — | H204: 44.81818182 | I204: — | J204: — | K204: — | L204: — | M204: 3 | N204: 49.33333333 | O204: — | P204: — | Q204: — | R204: — | S204: — | T204: — | Z204: =E205-H205 -> 17.08333333 | AA204: =(E205-H205)/H205 -> 0.03695691365
C205: hr. | D205: 3 | E205: 479.3333333 | F205: — | G205: — | H205: 462.25 | I205: — | J205: — | K205: — | L205: — | M205: — | N205: — | O205: — | P205: — | Q205: — | R205: — | S205: — | T205: —
B206: GRAIN BUGGY ALONE | C206: ac. | D206: 11 | E206: 6.545454545 | F206: 4.5 | G206: 9 | H206: 5.133333333 | I206: 4 | J206: 5.75 | K206: — | L206: — | M206: 3 | N206: 7.666666667 | O206: 3 | P206: 5.333333333 | Q206: — | R206: — | S206: — | T206: —
C207: hr. | D207: 10 | E207: 125 | F207: 82 | G207: 150 | H207: 143 | I207: — | J207: — | K207: — | L207: — | M207: 3 | N207: 160 | O207: — | P207: — | Q207: 3 | R207: 116.6666667 | S207: — | T207: — | Z207: =#REF!-#REF! ->  | AA207: =(#REF!-#REF!)/#REF! -> 
B209: Table 8. Survey of Custom Farmwork Rates charged in 2018 (cont'd)
B210: CUSTOM OPERATION | D210: Provincial | I210: Area 1 | K210: Area 2 | M210: Area 3 | O210: Area 4 | Q210: Area 5 | S210: Area 6
C211: Unit | D211: # | E211: 2018 | F211: 2018 Percentile | H211: 2015 | I211: # | J211: 2018 | K211: # | L211: 2018 | M211: # | N211: 2018 | P211: 2018 | R211: 2018 | T211: 2018
E212: ave. | F212: 15th | G212: 85th | H212: ave. | J212: ave. | L212: ave. | N212: ave. | O212: # | P212: ave. | Q212: # | R212: ave. | S212: # | T212: ave.
B213: OTHER CROP HARVESTING
B214: Grain swathing | C214: ac. | D214: 11 | E214: 17.10606061 | F214: 14.58333333 | G214: 21 | H214: 16 | I214: — | J214: — | K214: — | L214: — | M214: 4 | N214: 15.5 | O214: — | P214: — | Q214: — | R214: — | S214: 3 | T214: 14.38888889
C215: hr. | D215: 11 | E215: 153.4545455 | F215: 80 | G215: 188 | H215: 82.5 | I215: — | J215: — | K215: — | L215: — | M215: 4 | N215: 76.25 | O215: — | P215: — | Q215: — | R215: — | S215: — | T215: —
... 76 more rows
